bitfinex-derivatives/quotes_SOLF0:USTF0_20260202
["timestamp","ask_amount","ask_price","bid_price","bid_amount"]
[1770003379359,145.4844,96.332,96.329,8.636e-05]
[1770003379651,413.56,96.405,96.211,4.42520484]
[1770003379652,145.577,96.27,96.211,4.42520484]
[1770003379851,9.3568,96.288,96.189,145.6988]
[1770003380047,145.5183,96.309,96.21,145.6674]
[1770003380254,145.5392,96.295,96.207,4.42520484]
[1770003380556,145.5242,96.305,96.214,4.42520484]
[1770003380745,145.4902,96.328,96.22,33.85583208]
[1770003380949,145.4902,96.328,96.219,4.42520484]
[1770003380950,145.518,96.309,96.219,4.42520484]
[1770003381249,33.85583208,96.36,96.219,4.42520484]
[1770003381250,145.5145,96.312,96.219,4.42520484]
[1770003381451,9.3535,96.321,96.221,145.6508]
[1770003381646,9.3535,96.321,96.19,33.85583208]
[1770003381647,145.523,96.306,96.201,145.68]
[1770003381845,33.85583208,96.33,96.213,145.6625]
[1770003381846,9.3544,96.312,96.213,145.6625]
[1770003382048,145.4821,96.333,96.23,145.637]
[1770003382254,145.4655,96.344,96.244,145.6153]
[1770003382458,145.4492,96.355,96.253,145.6018]
[1770003382661,145.4492,96.355,96.248,13.83551731]
[1770003382662,145.4635,96.346,96.248,4.47501731]
[1770003382850,145.4635,96.346,96.25,145.6067]
[1770003383052,145.458,96.349,96.253,145.602]
[1770003383252,145.4625,96.346,96.243,145.6171]
[1770003383452,145.466,96.344,96.244,4.47501731]
[1770003383654,145.4642,96.345,96.247,145.6103]
[1770003383951,145.4747,96.338,96.244,4.47501731]
[1770003384257,145.4889,96.329,96.226,145.6427]
[1770003384452,145.4241,96.372,96.27,145.5768]
[1770003384660,145.4754,96.338,96.259,4.45090076]
[1770003384853,145.4894,96.328,96.229,145.6387]
[1770003385058,145.4566,96.35,96.248,145.6094]
[1770003385254,145.4409,96.361,96.261,145.5905]
[1770003385452,145.4409,96.361,96.265,145.5842]
[1770003385655,145.4583,96.349,96.249,4.44403786]
[1770003385852,145.4583,96.349,96.191,413.9]
[1770003385853,145.4891,96.329,96.231,145.6354]
[1770003386056,145.4725,96.34,96.243,145.6164]
[1770003386256,145.4725,96.34,96.233,4.44403786]
[1770003386554,145.5001,96.321,96.233,4.44403786]
[1770003386747,145.4851,96.331,96.238,145.6252]
[1770003386957,145.4767,96.337,96.241,145.6204]
[1770003387150,33.85583208,96.37,96.239,4.44403786]
[1770003387151,145.4902,96.328,96.239,4.44403786]
[1770003387561,145.4293,96.368,96.266,145.5824]
[1770003387757,145.444,96.358,96.266,145.5824]
[1770003387956,145.444,96.358,96.26,145.5913]
[1770003388158,33.85583208,96.4,96.272,145.5738]
[1770003388159,145.4252,96.371,96.272,145.5738]
[1770003388353,145.4105,96.381,96.282,150.04424028]
[1770003388554,145.4282,96.369,96.282,4.48564028]
[1770003388864,145.4483,96.356,96.255,145.5983]
[1770003389259,145.4643,96.345,96.253,4.48564028]
[1770003390155,145.4643,96.345,96.243,145.6163]
[1770003390156,145.4902,96.328,96.225,145.6448]
[1770003390358,145.4909,96.327,96.233,145.6325]
[1770003390660,145.5365,96.297,96.201,145.6804]
[1770003390855,9.3565,96.291,96.201,145.6804]
[1770003391263,145.5066,96.317,96.213,145.6617]
[1770003391463,145.5482,96.289,96.198,145.6858]
[1770003391662,145.5482,96.289,96.196,4.48748451]
[1770003391866,145.5168,96.31,96.219,145.6535]
[1770003392056,145.4982,96.323,96.229,145.6384]
[1770003392463,145.5387,96.296,96.2,145.6824]
[1770003392766,145.5523,96.287,96.196,4.48748451]
[1770003393069,145.4923,96.326,96.234,145.63]
[1770003393262,145.4768,96.337,96.244,145.615]
[1770003393462,145.4812,96.334,96.234,154.9929]
[1770003393658,145.5719,96.274,96.187,4.51424078]
[1770003393864,145.5719,96.274,96.109,4.57450161]
[1770003393865,145.6752,96.206,96.122,4.51424078]
[1770003394062,145.5768,96.271,96.109,4.57450161]
[1770003394063,145.5891,96.262,96.17,145.7269]
[1770003394265,145.6048,96.252,96.167,4.51424078]
[1770003394669,145.5139,96.312,96.133,4.51424078]
[1770003394670,33.85583208,96.26,96.133,4.51424078]
[1770003394872,145.6173,96.244,96.144,145.7673]
[1770003395166,145.6366,96.231,96.131,145.7869]
[1770003395371,145.6275,96.237,96.141,145.7714]
[1770003395669,436.0951,96.411,96.109,4.57450161]
[1770003395670,145.5459,96.291,96.195,145.6892]
[1770003395964,145.4709,96.341,96.174,145.7218]
[1770003395965,145.5819,96.267,96.174,145.7218]
[1770003396161,145.5819,96.267,96.172,4.50625751]
[1770003396162,33.85583208,96.29,96.172,4.50625751]
[1770003396365,145.6517,96.221,96.139,4.50625751]
[1770003396568,145.6517,96.221,96.119,145.8045]
[1770003396763,145.6517,96.221,96.049,145.9103]
[1770003396764,145.8147,96.113,95.991,4.50625751]
[1770003396967,145.8147,96.113,95.933,438.2629]
[1770003396968,145.8376,96.098,96.01,4.50625751]
[1770003397266,145.7745,96.14,96.034,145.9336]
[1770003397468,145.7745,96.14,95.943,146.0721]
[1770003397469,145.72,96.176,96.076,4.48506479]
[1770003397767,145.7139,96.18,96.078,145.8675]
[1770003397964,145.8614,96.083,95.998,4.48412055]
[1770003398169,145.7179,96.177,95.938,146.0797]
[1770003398170,145.9316,96.036,95.938,146.0797]
[1770003398371,145.9532,96.022,95.92,4.48412055]
[1770003398571,33.85583208,96.06,95.856,146.2045]
[1770003398572,145.9113,96.05,95.943,146.0728]
[1770003398769,33.85583208,96.06,95.875,146.1759]
[1770003398770,145.9011,96.057,95.939,4.48412055]
[1770003398966,145.899,96.058,95.962,146.0438]
[1770003399165,145.8469,96.092,95.939,4.48412055]
[1770003399472,145.7303,96.169,95.9,124.0]
[1770003399473,179.62953208,96.14,96.037,145.929]
[1770003399670,145.7591,96.15,96.047,145.9134]
[1770003399874,414.44,96.211,95.992,4.4750352]
[1770003399875,145.7799,96.136,95.992,4.4750352]
[1770003400072,145.7799,96.136,95.87,438.5522]
[1770003400073,33.85583208,96.02,95.889,6.097e-05]
[1770003400375,437.6353,96.072,95.889,6.097e-05]
[1770003400376,146.0148,95.982,95.889,6.097e-05]
[1770003400573,146.0105,95.985,95.889,6.097e-05]
[1770003400872,414.58,96.047,95.889,6.097e-05]
[1770003400873,145.8798,96.071,95.97,146.0312]
[1770003401076,145.906,96.053,95.952,146.059]
[1770003401272,145.9029,96.055,95.95,146.0612]
[1770003401477,145.9187,96.045,95.939,146.0781]
[1770003401674,145.9013,96.056,95.947,146.0657]
[1770003401870,179.70563208,96.09,95.989,146.0029]
[1770003402071,179.70563208,96.09,95.941,4.54043674]
[1770003402072,145.8715,96.076,95.983,146.0109]
[1770003402277,145.8695,96.077,95.972,146.0274]
[1770003402475,145.8545,96.087,95.982,146.0123]
[1770003402674,145.8079,96.118,96.009,145.9715]
[1770003402873,179.61453208,96.15,96.049,145.9116]
[1770003403073,395.77523722,96.18,96.085,145.856]
[1770003403379,395.77523722,96.18,96.083,145.8591]
[1770003403675,395.77523722,96.18,96.067,145.8839]
[1770003403676,145.731,96.169,96.067,145.8839]
[1770003403877,145.6729,96.207,96.107,145.8226]
[1770003404076,145.6842,96.2,96.093,145.8438]
[1770003404276,145.7287,96.17,96.068,145.8819]
[1770003404482,145.7287,96.17,96.077,145.8682]
[1770003404680,145.7266,96.172,96.062,145.8909]
[1770003404981,145.7266,96.172,96.056,4.48227357]
[1770003404982,145.7079,96.184,96.082,145.8608]
[1770003405176,145.7222,96.174,96.08,145.8641]
[1770003405376,145.7904,96.13,96.027,145.945]
[1770003405580,145.744,96.16,96.058,145.897]
[1770003405775,145.7414,96.162,96.066,145.8849]
[1770003405983,145.7225,96.174,96.079,145.866]
[1770003406177,145.699,96.19,96.059,4.49539596]
[1770003406483,145.5825,96.267,96.113,4.49539596]
[1770003406484,145.6666,96.211,96.113,4.49539596]
[1770003406686,145.6468,96.224,96.127,145.7919]
[1770003406885,145.6468,96.224,96.123,145.7981]
[1770003407090,145.5897,96.262,96.156,145.7495]
[1770003407287,145.5871,96.264,96.168,145.7299]
[1770003407487,33.85583208,96.3,96.165,4.49512293]
[1770003407488,145.6222,96.241,96.165,4.49512293]
[1770003407791,145.6346,96.232,96.142,4.486832]
[1770003407989,145.6005,96.255,96.142,4.486832]
[1770003408188,145.5785,96.269,96.173,4.486832]
[1770003408493,145.46,96.348,96.246,145.6128]
[1770003408684,145.3867,96.396,96.246,4.486832]
[1770003408887,145.4758,96.337,96.246,4.486832]
[1770003409082,145.5349,96.298,96.212,4.486832]
[1770003409286,145.444,96.358,96.212,4.486832]
[1770003409287,145.55,96.288,96.212,4.486832]
[1770003409485,145.4575,96.349,96.133,414.92]
[1770003409486,145.5641,96.279,96.182,4.45980042]
[1770003409691,145.5795,96.269,96.182,4.45980042]
[1770003409887,145.5447,96.292,96.185,145.705]
[1770003410090,145.5595,96.282,96.182,4.45980042]
[1770003410287,145.5873,96.264,96.182,4.45980042]
[1770003410682,145.5843,96.266,96.182,4.45980042]
[1770003411092,145.6504,96.222,96.127,145.7925]
[1770003411287,145.628,96.237,96.145,4.45980042]
[1770003411592,145.5645,96.279,96.175,150.26073241]
[1770003411786,33.85583208,96.31,96.187,145.7023]
[1770003411787,145.5389,96.296,96.187,145.7023]
[1770003411990,145.6074,96.25,96.175,4.54123241]
[1770003412192,145.5718,96.274,96.175,4.54123241]
[1770003412493,145.6115,96.248,96.175,4.54123241]
[1770003412694,145.5793,96.269,96.175,4.54123241]
[1770003412989,33.85583208,96.31,96.175,4.54123241]
[1770003412990,145.6109,96.248,96.175,4.54123241]
[1770003413291,145.5792,96.269,96.175,4.54123241]
[1770003413490,33.85583208,96.3,96.14,33.85583208]
[1770003413491,145.5938,96.259,96.153,145.7539]
[1770003413689,33.85583208,96.3,96.151,4.51796513]
[1770003413690,145.6111,96.248,96.151,4.51796513]
[1770003413891,145.6111,96.248,96.14,33.85583208]
[1770003413892,145.6111,96.248,96.154,145.7523]
[1770003414092,145.6111,96.248,96.152,4.51796513]
[1770003414292,145.5953,96.258,96.156,145.7485]
[1770003414492,145.5953,96.258,96.163,145.7378]
[1770003414791,145.5954,96.258,96.163,145.7378]
[1770003414992,145.5796,96.269,96.165,145.7348]
[1770003415192,145.5262,96.304,96.206,145.6733]
[1770003415387,145.5262,96.304,96.203,4.51796513]
[1770003415593,145.5962,96.258,96.17,4.50451565]
[1770003415794,145.5805,96.268,96.172,145.7251]
[1770003415993,145.5815,96.267,96.17,4.50451565]
[1770003416594,145.5654,96.278,96.17,4.50451565]
[1770003416795,145.5265,96.304,96.196,145.6876]
[1770003416997,145.5265,96.304,96.206,145.6737]
[1770003417191,145.5265,96.304,96.204,145.6766]
[1770003417395,145.5265,96.304,96.21,33.85583208]
[1770003417701,154.8706,96.311,96.208,145.6695]
[1770003417902,145.5143,96.312,96.207,145.6716]
[1770003418093,145.4754,96.338,96.229,145.6384]
[1770003418403,145.4558,96.351,96.25,145.6062]
[1770003418993,145.4379,96.363,96.259,145.5928]
[1770003419193,145.4342,96.365,96.263,4.49773449]
[1770003419389,145.4154,96.377,96.278,145.5646]
[1770003419589,145.4154,96.377,96.28,145.5607]
[1770003419799,145.3592,96.415,96.312,145.5126]
[1770003419994,145.3901,96.394,96.301,4.51501172]
[1770003420499,145.4436,96.359,96.269,4.51501172]
[1770003420694,145.4383,96.362,96.269,4.51501172]
[1770003420896,145.3504,96.421,96.314,145.51]
[1770003421197,145.364,96.411,96.311,145.5144]
[1770003421398,145.2398,96.494,96.268,414.68]
[1770003421399,145.3124,96.446,96.348,145.4576]
[1770003421593,145.3124,96.446,96.34,33.85583208]
[1770003421594,145.3487,96.422,96.34,33.85583208]
[1770003421800,145.4298,96.368,96.298,4.53331156]
[1770003421989,145.4199,96.374,96.298,4.53331156]
[1770003422391,145.4364,96.364,96.266,145.5823]
[1770003422592,145.3162,96.443,96.12,33.85583208]
[1770003422593,145.4513,96.354,96.262,4.53331156]
[1770003422894,145.4109,96.38,96.277,145.5651]
[1770003423098,145.4258,96.371,96.278,4.53331156]
[1770003423299,145.4021,96.386,96.289,145.547]
[1770003423506,145.4167,96.377,96.284,4.53331156]
[1770003423698,33.85583208,96.43,96.284,4.53331156]
[1770003423699,145.3834,96.399,96.294,145.5393]
[1770003423898,145.4354,96.364,96.284,4.53331156]
[1770003424196,559.9235,96.452,96.26,33.85583208]
[1770003424197,145.3517,96.42,96.322,145.498]
[1770003424389,145.3517,96.42,96.322,150.10775766]
[1770003424593,33.85583208,96.46,96.322,150.10775766]
[1770003424594,145.335,96.431,96.323,145.4953]
[1770003424794,145.3504,96.42,96.322,4.60975766]
[1770003424991,145.3504,96.42,96.322,150.10655766]
[1770003425198,145.3655,96.41,96.322,4.60975766]
[1770003425401,145.372,96.406,96.305,145.5233]
[1770003425702,145.3033,96.452,96.352,145.4516]
[1770003425895,145.2483,96.488,96.351,4.61523812]
[1770003426095,145.2649,96.477,96.382,4.61523812]
[1770003426295,145.1814,96.533,96.353,150.06623812]
[1770003426296,145.2927,96.459,96.353,150.06623812]
[1770003426497,145.3092,96.448,96.353,4.61523812]
[1770003426696,145.3164,96.443,96.353,4.61523812]
[1770003426997,145.2545,96.484,96.381,145.4083]
[1770003427198,145.3916,96.393,96.298,4.61523812]
[1770003427405,33.85583208,96.44,96.235,145.6295]
[1770003427406,145.3476,96.422,96.317,145.5052]
[1770003427802,145.3312,96.433,96.336,4.63360582]
[1770003428096,145.3372,96.429,96.336,4.63360582]
[1770003428292,33.85583208,96.47,96.346,4.63360582]
[1770003428293,145.31,96.447,96.346,4.63360582]
[1770003428494,145.3273,96.436,96.346,4.63360582]
[1770003428904,145.2981,96.455,96.358,145.4434]
[1770003429101,145.3338,96.432,96.349,4.63360582]
[1770003429306,145.331,96.433,96.349,4.63360582]
[1770003429505,145.3533,96.419,96.32,145.5013]
[1770003429709,145.3533,96.419,96.31,33.85583208]
[1770003429710,145.3164,96.443,96.337,145.4754]
[1770003429907,145.3164,96.443,96.336,4.61825311]
[1770003429908,145.3314,96.433,96.336,4.61825311]
[1770003430102,145.3462,96.423,96.336,4.61825311]
[1770003430306,145.2955,96.457,96.352,145.4527]
[1770003430504,145.3103,96.447,96.345,4.61825311]
[1770003430709,145.3025,96.452,96.349,145.4561]
[1770003430905,145.3104,96.447,96.349,145.4561]
[1770003431105,9.338,96.481,96.38,150.02795311]
[1770003431311,145.2623,96.479,96.38,4.61825311]
[1770003431507,145.2843,96.464,96.38,4.61825311]
[1770003431811,145.2801,96.467,96.38,4.61825311]
[1770003432399,145.2477,96.489,96.393,145.3909]
[1770003432604,145.1967,96.523,96.424,145.3435]
[1770003432803,33.85583208,96.55,96.416,4.64114278]
[1770003432804,145.2131,96.512,96.416,4.64114278]
[1770003433004,145.2096,96.514,96.422,4.64114278]
[1770003433608,145.2389,96.495,96.422,4.64114278]
[1770003434106,31.19,96.592,96.41,33.85583208]
[1770003434107,145.165,96.544,96.44,4.71253746]
[1770003434412,145.1871,96.529,96.461,4.71253746]
[1770003434607,9.334,96.523,96.429,4.71253746]
[1770003434807,154.53,96.523,96.429,4.71253746]
[1770003435219,145.227,96.502,96.429,4.71253746]
[1770003435405,145.1659,96.543,96.442,4.7106861]
[1770003435607,145.1986,96.521,96.425,4.7106861]
[1770003435810,145.2147,96.511,96.425,4.7106861]
[1770003436013,145.239,96.494,96.425,4.7106861]
[1770003436205,145.2087,96.515,96.414,145.3594]
[1770003436401,145.2087,96.515,96.342,145.4676]
[1770003436402,145.2074,96.515,96.425,4.7106861]
[1770003436607,145.2061,96.516,96.425,4.7106861]
[1770003436910,145.2463,96.49,96.391,4.7106861]
[1770003437105,145.2622,96.479,96.391,4.7106861]
[1770003437313,145.2325,96.499,96.398,145.3833]
[1770003437612,145.2059,96.516,96.418,4.813065]
[1770003437807,145.2146,96.511,96.42,4.813065]
[1770003438002,145.1456,96.557,96.452,145.3021]
[1770003438203,145.095,96.59,96.491,145.2431]
[1770003438508,145.0709,96.606,96.495,4.813065]
[1770003438714,145.0905,96.593,96.495,4.813065]
[1770003439014,145.1065,96.583,96.495,4.813065]
[1770003439312,145.1167,96.576,96.495,4.813065]
[1770003439612,145.1154,96.577,96.473,9.3387]
[1770003439809,50.77363838,96.61,96.464,5.01799783]
[1770003439810,145.1598,96.547,96.464,5.01799783]
[1770003440003,50.77363838,96.58,96.434,5.01799783]
[1770003440308,145.1215,96.573,96.44,5.01799783]
[1770003440508,145.2286,96.501,96.408,5.01799783]
[1770003440710,145.2225,96.505,96.408,5.01799783]
[1770003440905,145.1771,96.536,96.431,145.3334]
[1770003441106,145.1862,96.53,96.431,145.3334]
[1770003441301,154.4982,96.543,96.442,154.6588]
[1770003441506,9.3321,96.543,96.442,154.6588]
[1770003441713,145.15,96.554,96.417,5.01799783]
[1770003441714,145.15,96.554,96.454,145.2991]
[1770003441901,145.1832,96.532,96.436,145.3254]
[1770003442206,145.187,96.529,96.43,5.05826912]
[1770003442413,145.1763,96.536,96.44,5.05826912]
[1770003442607,145.1337,96.565,96.468,145.2779]
[1770003442813,145.1337,96.565,96.463,5.05826912]
[1770003443008,9.3299,96.565,96.469,159.67356912]
[1770003443210,145.1492,96.554,96.469,5.05826912]
[1770003443407,195.86913838,96.59,96.439,9.342]
[1770003443609,145.1778,96.535,96.437,5.04960285]
[1770003443809,145.1529,96.552,96.446,145.3102]
[1770003444011,145.1839,96.531,96.447,5.04960285]
[1770003444210,145.1371,96.562,96.462,5.04960285]
[1770003444405,50.77363838,96.59,96.468,5.04960285]
[1770003444406,145.157,96.549,96.468,5.04960285]
[1770003444609,9.3317,96.547,96.468,5.04960285]
[1770003444810,145.1061,96.583,96.479,145.2606]
[1770003445010,145.1011,96.586,96.49,5.04960285]
[1770003445216,154.429,96.586,96.491,5.04960285]
[1770003445413,145.1383,96.561,96.491,5.04960285]
[1770003445713,154.4414,96.578,96.491,5.04960285]
[1770003446014,145.0973,96.589,96.491,5.04960285]
[1770003446405,9.3289,96.576,96.491,5.04960285]
[1770003446717,145.1262,96.569,96.491,5.04960285]
[1770003446914,145.1111,96.58,96.491,5.04960285]
[1770003447110,145.1016,96.586,96.491,5.04960285]
[1770003447315,145.0959,96.59,96.494,5.03766738]
[1770003447512,50.77363838,96.62,96.494,5.03766738]
[1770003447718,145.1024,96.585,96.494,5.03766738]
[1770003448014,145.108,96.582,96.494,5.03766738]
[1770003448214,145.076,96.603,96.501,5.02667096]
[1770003448409,145.1182,96.575,96.504,5.02667096]
[1770003448710,145.1511,96.553,96.47,5.02667096]
[1770003449109,145.1092,96.581,96.484,5.02667096]
[1770003449310,145.0846,96.597,96.496,5.02667096]
[1770003449518,154.4114,96.597,96.504,14.37894043]
[1770003449816,145.1412,96.559,96.464,5.04324043]
[1770003450013,145.1436,96.558,96.464,5.04324043]
[1770003450214,145.1514,96.553,96.464,5.04324043]
[1770003450416,145.1909,96.526,96.464,5.04324043]
[1770003450616,145.0949,96.59,96.435,5.04324043]
[1770003450617,9.335,96.512,96.435,5.04324043]
[1770003450914,145.197,96.522,96.435,5.04324043]
[1770003451214,145.1678,96.542,96.422,145.347]
[1770003451416,145.2307,96.5,96.422,5.04324043]
[1770003451610,145.2156,96.51,96.422,5.04324043]
[1770003451812,145.2182,96.508,96.422,5.04324043]
[1770003452116,145.2182,96.508,96.337,164.1784]
[1770003452117,9.3394,96.467,96.389,5.15795188]
[1770003452315,145.272,96.473,96.389,5.15795188]
[1770003452518,145.2234,96.505,96.41,145.3652]
[1770003452719,145.2061,96.516,96.419,150.50985188]
[1770003453012,145.2307,96.5,96.419,5.15795188]
[1770003453212,145.2211,96.506,96.419,5.15795188]
[1770003453615,145.2617,96.479,96.388,5.17126997]
[1770003453818,145.1898,96.527,96.388,5.17126997]
[1770003454117,145.2754,96.47,96.372,5.17126997]
[1770003454328,145.2594,96.481,96.386,5.17126997]
[1770003454513,9.3359,96.504,96.41,9.3448]
[1770003454720,145.2063,96.516,96.421,5.17126997]
[1770003455019,145.2465,96.489,96.421,5.17126997]
[1770003455216,145.2303,96.5,96.421,5.17126997]
[1770003455422,145.196,96.523,96.421,5.17126997]
[1770003455623,9.3334,96.529,96.44,14.51159416]
[1770003455818,154.5198,96.529,96.44,5.16969416]
[1770003456019,145.2086,96.515,96.44,5.16969416]
[1770003456221,9.3338,96.524,96.44,5.16969416]
[1770003456523,145.1711,96.54,96.44,5.16969416]
[1770003456726,154.5056,96.538,96.441,9.3418]
[1770003456925,145.1843,96.531,96.441,9.3418]
[1770003457217,9.3325,96.539,96.443,5.16969416]
[1770003457427,50.77363838,96.59,96.467,5.18468956]
[1770003457728,145.0868,96.596,96.5,145.2296]
[1770003458021,50.77363838,96.62,96.505,159.74137838]
[1770003458022,145.0669,96.609,96.505,159.74137838]
[1770003458214,50.77363838,96.62,96.506,5.18427838]
[1770003458417,50.77363838,96.62,96.419,230.2]
[1770003458418,145.1367,96.562,96.468,5.18427838]
[1770003458621,145.0609,96.613,96.468,5.18427838]
[1770003458622,145.1611,96.546,96.468,5.18427838]
[1770003458815,145.1293,96.567,96.468,5.18427838]
[1770003459016,144.9685,96.675,96.489,5.18427838]
[1770003459219,145.0701,96.607,96.512,5.18427838]
[1770003459619,145.0867,96.596,96.512,5.18427838]
[1770003459919,145.1167,96.576,96.512,5.18427838]
[1770003460122,50.77363838,96.62,96.512,5.18427838]
[1770003460123,145.1,96.587,96.512,5.18427838]
[1770003460327,145.0879,96.595,96.512,5.18427838]
[1770003460820,145.0166,96.642,96.49,5.2343644]
[1770003461123,50.77363838,96.63,96.493,5.2343644]
[1770003461326,145.1212,96.573,96.468,5.2343644]
[1770003461523,145.1212,96.573,96.473,5.21919196]
[1770003461820,50.77363838,96.6,96.486,5.21919196]
[1770003462017,145.0503,96.62,96.522,145.1966]
[1770003462217,145.0963,96.589,96.511,5.21919196]
[1770003462418,145.118,96.575,96.487,5.21919196]
[1770003462616,9.329,96.575,96.487,5.21919196]
[1770003462820,145.0987,96.588,96.488,5.21919196]
[1770003463024,145.0987,96.588,96.493,5.21919196]
[1770003463224,145.0796,96.6,96.509,5.21919196]
[1770003463420,145.1173,96.575,96.477,145.2642]
[1770003463616,50.77363838,96.6,96.454,145.2991]
[1770003463617,145.148,96.555,96.454,145.2991]
[1770003463821,9.3308,96.555,96.462,5.23316166]
[1770003464017,145.0558,96.616,96.462,5.23316166]
[1770003464018,145.1586,96.548,96.462,5.23316166]
[1770003464319,145.1172,96.575,96.481,5.23316166]
[1770003464519,145.1015,96.586,96.481,5.23316166]
[1770003464721,154.447,96.575,96.481,5.23316166]
[1770003464917,145.1374,96.562,96.461,5.23316166]
[1770003465215,154.4546,96.57,96.476,5.23316166]
[1770003465524,145.0842,96.597,96.501,5.21695676]
[1770003465723,145.088,96.595,96.501,5.21695676]
[1770003466027,154.4151,96.595,96.501,5.21695676]
[1770003466724,145.0663,96.609,96.506,145.2204]
[1770003466925,145.0946,96.591,96.507,5.21759816]
[1770003467223,9.3288,96.577,96.507,5.21759816]
[1770003467419,50.77363838,96.61,96.478,5.21759816]
[1770003467620,9.3322,96.541,96.478,5.21759816]
[1770003467823,145.1718,96.539,96.442,5.21714709]
[1770003468021,145.1643,96.544,96.445,154.6541]
[1770003468217,145.1869,96.529,96.442,5.21714709]
[1770003468423,145.1869,96.529,96.347,145.46]
[1770003468424,145.2209,96.506,96.414,5.21714709]
[1770003468621,50.77363838,96.55,96.38,50.77363838]
[1770003468622,154.5157,96.532,96.437,5.21714709]
[1770003468827,154.5157,96.532,96.426,145.3408]
[1770003468828,145.2045,96.517,96.44,5.21714709]
[1770003469020,145.1855,96.53,96.44,5.21714709]
[1770003469220,154.5435,96.515,96.44,5.21714709]
[1770003469421,145.1837,96.531,96.44,5.21714709]
[1770003469622,145.1987,96.521,96.44,5.21714709]
[1770003469827,145.2078,96.515,96.44,5.21714709]
[1770003470021,154.5527,96.509,96.412,5.45432973]
[1770003470226,145.2165,96.509,96.422,5.45432973]
[1770003470519,9.3374,96.487,96.422,5.45432973]
[1770003470725,154.587,96.487,96.397,9.3461]
[1770003470925,145.2301,96.5,96.397,160.18542973]
[1770003471132,9.3379,96.483,96.397,14.80042973]
[1770003471324,145.2687,96.475,96.397,5.45432973]
[1770003471525,145.2672,96.476,96.397,5.45432973]
[1770003471827,145.1846,96.531,96.371,145.4239]
[1770003471828,145.2824,96.466,96.371,145.4239]
[1770003472029,145.2748,96.471,96.373,5.51420831]
[1770003472725,145.2748,96.471,96.372,145.4218]
[1770003472726,145.3147,96.444,96.35,5.51420831]
[1770003473030,50.77363838,96.46,96.35,5.51420831]
[1770003473031,145.3418,96.426,96.35,5.51420831]
[1770003473230,154.6852,96.426,96.35,5.51420831]
[1770003473627,9.3434,96.426,96.35,5.51420831]
[1770003473830,145.3701,96.407,96.322,5.51488565]
[1770003474122,145.3323,96.433,96.329,145.4875]
[1770003474324,145.2978,96.455,96.356,5.51488565]
[1770003474624,31.19,96.513,96.356,5.51488565]
[1770003474822,145.1966,96.523,96.277,145.5662]
[1770003474823,145.2728,96.472,96.376,145.4165]
[1770003475124,145.274,96.471,96.375,5.51488565]
[1770003475325,9.3385,96.476,96.381,150.92368565]
[1770003475520,145.2812,96.466,96.382,5.48915896]
[1770003475924,154.6207,96.466,96.382,5.48915896]
[1770003476125,145.2624,96.479,96.382,5.48915896]
[1770003476426,145.2686,96.475,96.386,5.48915896]
[1770003476629,50.77363838,96.51,96.388,5.48915896]
[1770003476820,154.5683,96.499,96.399,5.48915896]
[1770003477026,145.2146,96.511,96.414,5.48915896]
[1770003477227,145.2016,96.519,96.416,5.48915896]
[1770003477427,145.2016,96.519,96.42,5.48915896]
[1770003477629,145.1668,96.542,96.446,150.80354853]
[1770003477832,145.1318,96.566,96.463,145.285]
[1770003478134,154.4655,96.563,96.469,9.3391]
[1770003478326,145.1521,96.552,96.464,5.49264853]
[1770003478929,145.1354,96.563,96.464,5.49264853]
[1770003479129,145.1447,96.557,96.464,5.49264853]
[1770003479434,145.1076,96.582,96.479,145.2612]
[1770003479735,145.1251,96.57,96.468,5.49264853]
[1770003479936,9.3295,96.569,96.479,9.3381]
[1770003480130,145.1413,96.559,96.468,5.49264853]
[1770003480331,9.3291,96.574,96.48,145.2588]
[1770003480537,145.0357,96.63,96.48,145.2588]
[1770003480538,145.0659,96.61,96.509,145.2154]
[1770003480731,145.0772,96.602,96.493,145.2392]
[1770003480934,9.326,96.605,96.511,145.2133]